bitfinex/quotes_BTCUSD_20260308
["timestamp","ask_amount","ask_price","bid_price","bid_amount"]
[1772936934546,0.03538115,67243.0,67233.0,0.0002]
[1772936935640,0.03538115,67243.0,67234.0,0.0002]
[1772936935851,0.03538115,67243.0,67234.0,0.02612592]
[1772936937567,0.07435828,67242.0,67234.0,0.02612592]
[1772936939226,0.07435828,67242.0,67234.0,0.02595762]
[1772936939372,0.000189,67241.0,67234.0,0.02595762]
[1772936939815,0.03390115,67240.0,67233.0,0.0002]
[1772936940058,0.03390115,67240.0,67231.0,0.00148]
[1772936940204,0.03390115,67240.0,67228.0,0.0001296]
[1772936941848,0.0743616,67239.0,67228.0,0.0001296]
[1772936942013,0.03383115,67238.0,67228.0,0.0001296]
[1772936942218,0.0743616,67239.0,67228.0,0.0001296]
[1772936942219,0.03567368,67237.0,67228.0,0.0001296]
[1772936943624,0.03567368,67237.0,67227.0,0.0002]
[1772936944024,0.07436492,67236.0,67227.0,0.0002]
[1772936944738,0.07436492,67236.0,67229.0,0.01944643]
[1772936948864,0.00148,67237.0,67229.0,0.01944643]
[1772936949055,0.00148,67237.0,67230.0,0.01944633]
[1772936949409,0.00148,67237.0,67228.0,0.07457356]
[1772936949605,0.07436165,67239.0,67228.0,0.07457356]
[1772936949852,0.11153606,67239.0,67228.0,0.07457356]
[1772936950052,0.11153606,67239.0,67228.0,0.09401989]
[1772936950255,0.03569441,67238.0,67223.0,0.07437835]
[1772936951058,0.03569441,67236.0,67224.0,0.07437801]
[1772936952161,0.03569441,67236.0,67224.0,0.08410155]
[1772936952722,0.03569441,67236.0,67224.0,0.07437801]
[1772936952916,0.07436824,67233.0,67224.0,0.07437801]
[1772936953114,0.07436824,67233.0,67225.0,0.07468019]
[1772936953531,0.07436824,67233.0,67221.0,0.00168]
[1772936953532,0.00148,67232.0,67204.0,0.0001712]
[1772936953678,0.03565441,67229.0,67215.0,0.07498897]
[1772936953876,0.04171008,67227.0,67215.0,0.07498897]
[1772936954117,0.00148,67226.0,67215.0,0.07498897]
[1772936954714,0.04319008,67226.0,67215.0,0.07498897]
[1772936955118,0.07585709,67226.0,67215.0,0.07498897]
[1772936957003,0.07437274,67229.0,67215.0,0.07498897]
[1772936957205,0.00148,67229.0,67215.0,0.07498897]
[1772936958182,0.04180214,67226.0,67215.0,0.00060123]
[1772936958387,0.03561871,67223.0,67182.0,0.29684662]
[1772936958608,0.03561871,67223.0,67202.0,0.07440226]
[1772936958609,0.03561871,67217.0,67202.0,0.07440226]
[1772936958805,0.03561871,67213.0,67203.0,0.07440132]
[1772936959019,0.03561871,67212.0,67201.0,0.07588347]
[1772936959217,0.07439258,67213.0,67201.0,0.07599758]
[1772936959624,0.07439258,67213.0,67201.0,0.07588347]
[1772936960737,0.07439258,67213.0,67208.0,0.0002]
[1772936961100,1e-08,67216.0,67208.0,0.0002]
[1772936961329,0.04181644,67224.0,67208.0,0.0002]
[1772936961330,0.00148,67221.0,67208.0,0.0002]
[1772936961706,0.03561871,67228.0,67208.0,0.0002]
[1772936961707,0.07435258,67248.0,67214.0,0.00575]
[1772936961907,0.0004,67250.0,67215.0,0.00148]
[1772936961908,0.0002912,67246.0,67215.0,0.00148]
[1772936962452,0.04425489,67230.0,67216.0,0.00148]
[1772936962633,0.04181644,67229.0,67216.0,0.00148]
[1772936962817,0.04181644,67229.0,67217.0,0.00148]
[1772936963217,0.00148,67238.0,67217.0,0.00148]
[1772936963218,0.04181215,67236.0,67219.0,0.01145162]
[1772936964078,0.04181215,67234.0,67218.0,0.07586483]
[1772936964225,0.04181215,67233.0,67218.0,0.07586483]
[1772936964426,0.03561871,67234.0,67216.0,0.07438483]
[1772936964427,0.04181215,67229.0,67216.0,0.07438483]
[1772936964628,0.04181215,67228.0,67216.0,0.07586483]
[1772936964962,0.03561871,67228.0,67216.0,0.07438483]
[1772936965263,0.04226289,67225.0,67214.0,0.08013919]
[1772936965465,0.04226289,67224.0,67214.0,0.08013919]
[1772936965969,0.04226289,67224.0,67214.0,0.08013905]
[1772936966318,0.0423521,67224.0,67214.0,0.08013905]
[1772936967971,0.04226125,67222.0,67218.0,0.0002]
[1772936968234,0.04226125,67222.0,67213.0,0.0001712]
[1772936968439,0.04226125,67220.0,67205.0,0.07439902]
[1772936968595,0.04226125,67221.0,67205.0,0.07439902]
[1772936968996,0.03561871,67220.0,67205.0,0.07439902]
[1772936969196,0.04374067,67219.0,67205.0,0.07439902]
[1772936970065,0.04226067,67217.0,67205.0,0.07439902]
[1772936970260,0.04226067,67216.0,67205.0,0.07439902]
[1772936972153,0.11664838,67216.0,67205.0,0.07439902]
[1772936974007,0.04232563,67215.0,67205.0,0.07439902]
[1772936975157,0.04232563,67215.0,67205.0,0.07459902]
[1772936975986,0.04217563,67215.0,67205.0,0.07459902]
[1772936979209,0.07438824,67215.0,67205.0,0.0002]
[1772936979423,0.07438815,67217.0,67205.0,0.0002]
[1772936979584,0.04227525,67216.0,67205.0,0.0002]
[1772936981938,0.1166659,67215.0,67205.0,0.0002]
[1772936983239,0.04227775,67215.0,67205.0,0.0002]
[1772936983433,0.11665789,67218.0,67205.0,0.0002]
[1772936984797,0.04226758,67217.0,67205.0,0.0002]
[1772936988238,0.07586584,67219.0,67206.0,0.00415786]
[1772936988239,0.07586444,67219.0,67206.0,0.00415786]
[1772936988395,0.1167304,67224.0,67206.0,0.00415786]
[1772936988595,0.07446767,67224.0,67206.0,0.00415786]
[1772936988795,0.00148,67223.0,67206.0,0.00415786]
[1772936989550,0.00148,67222.0,67206.0,0.00415786]
[1772936990227,0.00148,67222.0,67207.0,0.07439701]
[1772936990443,0.00148,67222.0,67208.0,0.00148]
[1772936991282,0.00148,67222.0,67209.0,0.00311721]
[1772936992261,0.00148,67222.0,67210.0,0.07439369]
[1772936992458,0.00156921,67224.0,67211.0,0.00277333]
[1772936993386,8.921e-05,67224.0,67211.0,0.00277333]
[1772936994085,8.921e-05,67224.0,67210.0,0.07439369]
[1772936994296,0.04332691,67223.0,67210.0,0.07439369]
[1772936998206,8.921e-05,67224.0,67210.0,0.07439369]
[1772936999598,8.921e-05,67224.0,67211.0,0.00041264]
[1772937001038,8.921e-05,67224.0,67210.0,0.07587369]
[1772937001039,0.04327659,67223.0,67210.0,0.07587369]
[1772937001394,0.07459991,67223.0,67210.0,0.07587369]
[1772937002409,0.07459991,67223.0,67210.0,0.07439369]
[1772937002612,0.04427574,67220.0,67207.0,0.00015]
[1772937002818,0.00148,67219.0,67199.0,0.07440583]
[1772937003015,0.14963783,67219.0,67200.0,0.07567871]
[1772937003248,0.04427574,67211.0,67198.0,0.07440629]
[1772937003444,0.0743959,67208.0,67194.0,0.07441096]
[1772937003825,0.04326295,67207.0,67194.0,0.07441096]
[1772937003945,0.02243798,67207.0,67194.0,0.07441096]
[1772937006274,0.07439811,67206.0,67194.0,0.07441096]
[1772937007279,0.11479737,67206.0,67194.0,0.07441096]
[1772937007672,0.11479737,67206.0,67194.0,0.07589096]
[1772937008582,0.04039926,67206.0,67194.0,0.07589096]
[1772937009338,0.04039926,67206.0,67194.0,0.07461096]
[1772937009526,0.04038655,67205.0,67195.0,0.00148]
[1772937009727,0.07439876,67206.0,67188.0,0.07441805]
[1772937009728,0.04038655,67203.0,67188.0,0.07441805]
[1772937009875,0.04038655,67201.0,67188.0,0.05358317]
[1772937010283,0.04038655,67200.0,67188.0,0.05358317]
[1772937010714,0.04038003,67198.0,67188.0,0.05358317]
[1772937010930,0.04038003,67198.0,67188.0,0.05398334]
[1772937011921,0.04038003,67198.0,67188.0,0.00040017]
[1772937012128,0.04038003,67197.0,67188.0,0.07481822]
[1772937012439,0.04038003,67197.0,67188.0,0.00040017]
[1772937012839,0.07440919,67196.0,67189.0,0.07441694]
[1772937013039,0.10719608,67198.0,67189.0,0.07441694]
[1772937013040,0.04055705,67197.0,67189.0,0.07441694]
[1772937014273,0.11496536,67197.0,67189.0,0.07441694]
[1772937018773,0.11496536,67197.0,67189.0,0.07461694]
[1772937021689,0.11496536,67197.0,67190.0,0.00015]
[1772937027724,0.11496536,67197.0,67190.0,0.00035]
[1772937029201,0.11496536,67197.0,67191.0,0.07441472]
[1772937029632,0.07439468,67210.0,67191.0,0.07441472]
[1772937029825,0.07439479,67209.0,67192.0,0.03144041]
[1772937030049,0.01753148,67208.0,67192.0,0.03144041]
[1772937030253,0.03278845,67208.0,67191.0,0.07441472]
[1772937030420,0.03278845,67207.0,67191.0,0.07441472]
[1772937030619,0.01753148,67205.0,67191.0,0.07441472]
[1772937031609,0.02629121,67203.0,67191.0,0.07441472]
[1772937032616,0.00148,67202.0,67191.0,0.07441472]
[1772937033620,0.07439684,67208.0,67192.0,0.00148]
[1772937033835,0.00148,67207.0,67192.0,0.00148]
[1772937034052,0.00148,67206.0,67192.0,0.00148]
[1772937034420,0.07439684,67208.0,67192.0,0.00148]
[1772937034621,0.02777121,67207.0,67192.0,0.00148]
[1772937035698,0.07587811,67206.0,67193.0,0.07441251]
[1772937036008,0.02629121,67205.0,67193.0,0.07441251]
[1772937036188,0.0344786,67203.0,67193.0,0.07441251]
[1772937036349,0.02629121,67202.0,67193.0,0.07441251]
[1772937037483,0.07609812,67206.0,67190.0,0.10442933]
[1772937037686,0.07440033,67204.0,67190.0,0.10442933]
[1772937038213,0.02469423,67203.0,67190.0,0.07441251]
[1772937039775,0.0344786,67200.0,67189.0,0.0002]
[1772937039996,0.02469423,67198.0,67189.0,0.0002]
[1772937041872,0.07440808,67197.0,67189.0,0.0002]
[1772937045729,0.09910231,67197.0,67189.0,0.0002]
[1772937048370,0.07440808,67197.0,67180.0,0.00148]
[1772937048545,0.02469423,67189.0,67176.0,0.07443076]
[1772937048864,0.02469802,67186.0,67176.0,0.07455104]
[1772937049280,0.0344786,67185.0,67160.0,0.08019888]
[1772937049449,0.0344786,67178.0,67163.0,0.0745893]
[1772937049771,0.0344786,67178.0,67163.0,0.0725863]
[1772937049772,0.02617802,67177.0,67163.0,0.0725863]
[1772937049967,0.00534314,67177.0,67163.0,0.0725863]
[1772937050335,0.0359586,67177.0,67163.0,0.0725863]
[1772937050535,0.01428058,67176.0,67163.0,0.0725863]
[1772937050736,0.07443245,67175.0,67163.0,0.0725863]
[1772937050974,0.01588451,67174.0,67163.0,0.0725863]
[1772937053277,0.07443466,67173.0,67163.0,0.0725863]
[1772937055479,0.07443466,67173.0,67163.0,0.0727863]
[1772937056855,0.0759107,67177.0,67163.0,0.0727863]
[1772937057054,0.0759107,67177.0,67164.0,0.0003987]
[1772937057380,0.0744307,67177.0,67164.0,0.0003987]
[1772937057577,0.00148,67176.0,67165.0,0.07444353]
[1772937058166,0.0744307,67177.0,67165.0,0.07444353]
[1772937058388,0.00148,67176.0,67165.0,0.07444353]
[1772937059724,0.07443206,67176.0,67165.0,0.07444353]
[1772937059909,0.07591206,67176.0,67165.0,0.07444353]
[1772937060318,0.0849159,67176.0,67165.0,0.07444353]
[1772937060511,0.07591206,67176.0,67165.0,0.07444353]
[1772937061347,0.0344786,67174.0,67163.0,0.0002]
[1772937061574,0.04429121,67175.0,67163.0,0.0002]
[1772937061575,0.00904148,67171.0,67163.0,0.07464564]
[1772937061929,0.08347947,67170.0,67163.0,0.0002]
[1772937062411,0.07443799,67170.0,67163.0,0.0002]
[1772937062651,0.00904148,67169.0,67163.0,0.0002]
[1772937063223,0.00904148,67169.0,67162.0,0.07444648]
[1772937063770,0.00911422,67167.0,67151.0,0.07445874]
[1772937064064,0.03452909,67158.0,67137.0,0.07447458]
[1772937064264,0.04429121,67153.0,67136.0,0.00148]
[1772937064556,0.04429121,67153.0,67135.0,0.07447458]
[1772937064857,0.0091483,67148.0,67135.0,0.07447458]
[1772937065064,0.0106283,67148.0,67135.0,0.07447458]
[1772937065361,0.0089983,67146.0,67135.0,0.07635646]
[1772937065603,0.0089983,67146.0,67135.0,0.07487646]
[1772937065906,0.04429121,67145.0,67132.0,0.000206]
[1772937065964,0.03452909,67144.0,67132.0,0.000206]
[1772937066163,0.0090733,67141.0,67132.0,0.00032646]
[1772937066366,0.00148,67140.0,67132.0,0.07480643]
[1772937066568,0.0105533,67140.0,67132.0,0.07480643]
[1772937067495,0.07447236,67139.0,67132.0,0.07480643]
[1772937068744,0.08379748,67139.0,67132.0,0.00032646]
[1772937068948,0.08379748,67139.0,67126.0,0.07448643]
[1772937068949,0.07447236,67139.0,67123.0,0.07448983]
[1772937069171,0.00944902,67131.0,67122.0,0.07449074]
[1772937069499,0.00944902,67129.0,67122.0,0.07449074]
[1772937069970,0.07448234,67130.0,67122.0,0.07449074]
[1772937071893,0.00958865,67138.0,67122.0,0.07449074]
[1772937072058,0.00148,67134.0,67122.0,0.07449074]
[1772937072457,0.01106865,67134.0,67122.0,0.07449074]
[1772937072893,0.01106865,67134.0,67123.0,0.00148]
[1772937073094,0.00961442,67132.0,67121.0,0.07469775]
[1772937073274,0.00961442,67131.0,67122.0,0.00148]
[1772937073509,0.00961442,67129.0,67123.0,0.07449011]
[1772937074232,0.00961442,67129.0,67122.0,0.07449122]
[1772937078453,0.00966728,67128.0,67121.0,0.07469743]
[1772937080399,0.00966728,67128.0,67121.0,0.000206]
[1772937080563,0.08415185,67128.0,67121.0,0.000206]
[1772937080909,0.00971001,67127.0,67121.0,0.000206]
[1772937082945,0.00927198,67130.0,67121.0,0.000206]
[1772937083148,0.03452909,67129.0,67121.0,0.000206]
[1772937083347,0.00927198,67128.0,67121.0,0.000206]
[1772937083967,0.00927198,67126.0,67115.0,0.07597794]
[1772937084175,0.00927198,67125.0,67115.0,0.07597794]
[1772937084723,0.00927198,67125.0,67115.0,0.07449794]
[1772937084928,0.07449011,67123.0,67115.0,0.07449794]
[1772937085107,0.00927198,67122.0,67115.0,0.07449794]
[1772937085286,0.00927198,67122.0,67115.0,0.0002284]
[1772937085464,0.00927198,67120.0,67112.0,0.07450129]
[1772937086597,0.00927198,67120.0,67108.0,0.00148]
[1772937086598,0.03452909,67119.0,67108.0,0.00148]
[1772937086796,0.00927198,67117.0,67107.0,0.07450781]
[1772937086999,0.08377208,67114.0,67107.0,0.07450781]
[1772937087380,0.08362208,67114.0,67107.0,0.07450781]
[1772937087943,0.08374192,67114.0,67107.0,0.07450781]
[1772937088469,0.00939182,67114.0,67107.0,0.07450781]
[1772937088651,0.00939182,67114.0,67108.0,0.0002]
[1772937088860,0.00148,67119.0,67109.0,0.00872494]
[1772937089018,0.00148,67118.0,67110.0,0.07450454]
[1772937089962,0.07448463,67128.0,67111.0,0.00872494]
[1772937090256,0.04429121,67140.0,67115.0,0.00872494]
[1772937090257,0.08375266,67132.0,67115.0,0.00872494]
[1772937090408,0.00148,67131.0,67115.0,0.00872494]
[1772937090973,0.00148,67130.0,67116.0,0.07449788]
[1772937091135,0.0001204,67132.0,67118.0,0.03479743]
[1772937091337,0.0001204,67132.0,67119.0,0.00872494]
[1772937091745,0.07447566,67137.0,67117.0,0.00148]
[1772937091746,0.07446904,67142.0,67123.0,0.00872494]
[1772937091942,0.0002464,67144.0,67126.0,0.03479743]
[1772937092126,0.00148,67141.0,67129.0,0.00872494]
[1772937092355,0.07619354,67144.0,67129.0,0.00872494]
[1772937092802,0.07471354,67144.0,67129.0,0.00872494]
[1772937092996,0.07619354,67144.0,67130.0,0.07448234]
[1772937093317,0.07619354,67144.0,67131.0,0.00872494]
[1772937093318,0.07471354,67144.0,67131.0,0.00872494]
[1772937093442,0.00148,67143.0,67131.0,0.00872494]
[1772937093642,0.00927198,67142.0,67125.0,0.07448714]
[1772937093905,0.03286534,67139.0,67125.0,0.07448714]
[1772937094095,0.00927198,67136.0,67125.0,0.07448714]
[1772937094240,0.07471354,67144.0,67123.0,0.0001204]
[1772937094241,0.03286534,67133.0,67123.0,0.0001204]
[1772937094439,0.00927198,67130.0,67123.0,0.0001204]
[1772937094639,0.00927198,67128.0,67120.0,0.07597337]
[1772937094862,0.00927198,67128.0,67120.0,0.07449337]
[1772937095093,0.07448567,67127.0,67119.0,0.07449369]
[1772937095268,0.00927198,67128.0,67119.0,0.07449369]
[1772937096304,0.07448142,67131.0,67119.0,0.07449369]
[1772937096667,0.0837534,67131.0,67123.0,0.0002]
[1772937097064,0.00148,67130.0,67123.0,0.0002]
[1772937097383,0.07596238,67130.0,67123.0,0.0002]
[1772937097980,0.08523436,67130.0,67123.0,0.0002]
[1772937099581,0.07596238,67130.0,67123.0,0.0002]
[1772937099786,0.00148,67130.0,67123.0,0.0002]
[1772937101298,0.07596276,67130.0,67123.0,0.0002]
[1772937101502,0.08580004,67130.0,67123.0,0.0002]
[1772937102305,0.0744742,67138.0,67123.0,0.0002]
[1772937102491,0.00148,67133.0,67124.0,0.00941086]
[1772937103175,0.07459455,67138.0,67124.0,0.00941086]
[1772937103379,0.07447569,67136.0,67125.0,0.07448789]
[1772937103614,0.08431297,67136.0,67125.0,0.07448789]
[1772937103827,0.00983728,67134.0,67123.0,0.07468813]
[1772937104030,0.03434534,67135.0,67123.0,0.07468813]
[1772937104031,0.00983728,67132.0,67123.0,0.07468813]
[1772937104204,0.01131728,67132.0,67123.0,0.07468813]
[1772937104534,0.00983728,67130.0,67122.0,0.07449044]
[1772937104738,0.00983728,67129.0,67122.0,0.07449044]
[1772937105040,0.00983728,67129.0,67123.0,0.00015]
[1772937105449,0.07448394,67129.0,67117.0,0.00148]
[1772937105651,0.00983728,67127.0,67113.0,0.07450121]
[1772937105953,0.00983728,67127.0,67117.0,0.00148]
[1772937106452,0.03286534,67129.0,67116.0,0.0002]
[1772937106453,0.00983728,67123.0,67116.0,0.0002]
[1772937106607,0.00983728,67122.0,67116.0,0.0002]
[1772937106805,0.03286534,67122.0,67113.0,0.07450121]
[1772937107007,0.00983728,67120.0,67110.0,0.07450454]
[1772937107263,0.04418262,67120.0,67110.0,0.07450454]
[1772937107498,0.07449455,67119.0,67108.0,0.07450454]
[1772937107762,0.07449455,67119.0,67107.0,0.07598454]
[1772937107964,0.00983728,67116.0,67106.0,0.08025891]
[1772937108144,0.03286534,67115.0,67106.0,0.08025891]
[1772937108460,0.07449455,67119.0,67106.0,0.08025891]
[1772937108461,0.04270262,67114.0,67106.0,0.08025891]
[1772937108883,0.00983728,67113.0,67106.0,0.08025891]
[1772937109081,0.00983728,67113.0,67106.0,0.08037875]
[1772937110483,0.07450232,67112.0,67106.0,0.08037875]
[1772937114037,0.11720494,67112.0,67102.0,0.07451238]
[1772937114232,0.04441786,67120.0,67102.0,0.07451238]
[1772937114233,0.00983728,67123.0,67102.0,0.07451238]
[1772937114373,0.07448671,67128.0,67108.0,0.03397499]
[1772937114573,0.14761552,67132.0,67112.0,0.00941086]
[1772937114804,0.00148,67135.0,67112.0,0.00941086]
[1772937114995,0.00148,67136.0,67115.0,0.03397499]
[1772937115202,0.00148,67136.0,67106.0,0.00595]
[1772937115203,0.00148,67136.0,67118.0,0.00941086]
[1772937115380,0.00148,67136.0,67120.0,0.00941086]
[1772937115901,0.04270262,67135.0,67121.0,0.07449233]
[1772937116109,0.00983728,67134.0,67122.0,0.00148]
[1772937116283,0.00983728,67133.0,67122.0,0.00148]
[1772937116490,0.00983728,67133.0,67121.0,0.07449233]
[1772937116692,0.00983728,67133.0,67122.0,0.00148]
[1772937118268,0.00983728,67133.0,67123.0,0.07449011]
[1772937118847,0.00148,67135.0,67123.0,0.07449011]
[1772937119054,0.00015,67140.0,67127.0,0.03397499]
[1772937119270,0.00015,67140.0,67130.0,0.00941086]
[1772937119449,0.00027042,67140.0,67130.0,0.00941086]
[1772937120511,0.00027042,67140.0,67132.0,0.00941086]
[1772937120690,0.00027042,67140.0,67131.0,0.07448123]
[1772937120691,0.00148,67149.0,67134.0,0.00941086]
[1772937120996,0.00148,67149.0,67136.0,0.00941086]
[1772937121139,0.00148,67149.0,67136.0,0.00953128]
[1772937121338,0.07486022,67150.0,67136.0,0.00953128]
[1772937121589,0.0004,67150.0,67136.0,0.00953128]
[1772937121853,0.0004,67150.0,67138.0,0.00941086]
[1772937122046,1e-08,67151.0,67140.0,0.00941086]
[1772937122253,1e-08,67151.0,67139.0,0.00148]
[1772937122471,1e-08,67151.0,67143.0,0.00993337]
[1772937122699,0.0002464,67157.0,67143.0,0.009765]
[1772937122811,0.0002464,67157.0,67143.0,0.00959664]
[1772937123009,0.12124793,67165.0,67144.0,0.0369136]
[1772937123219,0.11722251,67174.0,67148.0,0.0369136]
[1772937123220,0.08568066,67169.0,67148.0,0.0369136]
[1772937123414,0.00148,67165.0,67151.0,0.00993337]
[1772937123629,0.00148,67164.0,67151.0,0.01141337]
[1772937124381,0.00148,67164.0,67152.0,0.07445794]
[1772937124560,0.00148,67164.0,67153.0,0.00993337]
[1772937125447,0.07444509,67164.0,67152.0,0.07445794]
[1772937125808,0.12047863,67166.0,67152.0,0.08439131]
[1772937126080,0.12047863,67166.0,67153.0,0.00993337]
[1772937126704,0.04603525,67166.0,67154.0,0.07445572]
[1772937127002,0.07444081,67168.0,67155.0,0.00993337]
[1772937127500,0.07444081,67168.0,67154.0,0.07445572]
[1772937127501,0.00967732,67167.0,67154.0,0.07445572]
[1772937127685,0.03635793,67166.0,67154.0,0.07445572]
[1772937128083,0.04603525,67166.0,67154.0,0.07445572]
[1772937128879,0.07444353,67165.0,67153.0,0.07445572]
[1772937129262,0.07444353,67165.0,67153.0,0.08456037]
[1772937130390,0.03635793,67166.0,67153.0,0.07445572]
[1772937130595,0.07444173,67167.0,67154.0,0.01010465]
[1772937131430,0.01631245,67168.0,67156.0,0.01010465]
[1772937131573,0.01631245,67168.0,67158.0,0.01010465]
[1772937131773,0.00022001,67165.0,67158.0,0.01010465]
[1772937132476,0.07442459,67183.0,67158.0,0.01010465]
[1772937132721,0.00080148,67175.0,67160.0,0.0369136]
[1772937132875,0.00080148,67175.0,67163.0,0.01010465]
[1772937133077,0.00080148,67175.0,67165.0,0.01010465]
[1772937133750,0.03635793,67173.0,67157.0,0.0744524]
[1772937133936,0.00957758,67170.0,67161.0,0.00148]
[1772937134165,0.00957758,67168.0,67157.0,0.0744524]
[1772937134451,0.03635793,67166.0,67157.0,0.0744524]
[1772937134662,0.03635793,67166.0,67158.0,0.00148]
[1772937137006,0.03635793,67166.0,67159.0,0.07445018]
[1772937137662,0.07443918,67169.0,67159.0,0.07445018]
[1772937137856,0.11079711,67169.0,67159.0,0.07445018]
[1772937138990,0.11079711,67169.0,67161.0,0.07444796]
[1772937139187,0.03635793,67168.0,67161.0,0.07444796]
[1772937139972,0.00022001,67166.0,67161.0,0.07444796]
[1772937140567,0.03635793,67168.0,67161.0,0.07444796]
[1772937141558,0.11079903,67168.0,67161.0,0.07444796]
[1772937141759,0.03635793,67166.0,67160.0,0.07444899]
[1772937141955,0.00957758,67165.0,67158.0,0.04923572]
[1772937142159,0.00957758,67165.0,67157.0,0.0744516]
[1772937142356,0.00957758,67165.0,67155.0,0.0744524]
[1772937142604,0.00957758,67165.0,67155.0,0.0759324]
[1772937142802,0.00957758,67165.0,67155.0,0.0421023]
[1772937143175,0.00957758,67165.0,67155.0,0.0406223]
[1772937143488,0.00957758,67165.0,67155.0,0.04193397]
[1772937143691,0.07444464,67164.0,67150.0,0.07446016]
[1772937143883,0.00957758,67163.0,67150.0,0.07446016]
[1772937144086,0.00957758,67163.0,67151.0,0.00148]
[1772937144488,0.00957758,67163.0,67150.0,0.07446016]
[1772937144689,0.00957758,67163.0,67152.0,0.00148]
[1772937145065,0.00957758,67163.0,67150.0,0.07446016]
[1772937145264,0.00957758,67163.0,67153.0,0.00148]
[1772937147820,0.07444685,67162.0,67148.0,0.08604688]
[1772937148812,0.07444685,67162.0,67148.0,0.08456688]
[1772937149029,0.07444685,67162.0,67149.0,0.01158465]
[1772937149244,0.07444685,67162.0,67150.0,0.01010465]
[1772937149444,0.07444685,67162.0,67151.0,0.00148]
[1772937150933,0.07444685,67162.0,67152.0,0.07445794]
[1772937156191,0.07444685,67162.0,67153.0,0.00148]
[1772937156416,0.07444685,67162.0,67153.0,0.00131169]
[1772937156599,0.07444685,67162.0,67152.0,0.07445794]
[1772937156806,0.00957758,67161.0,67151.0,0.07445794]
[1772937156982,0.00957758,67161.0,67152.0,0.00148]
[1772937157169,0.00957758,67161.0,67152.0,0.00168]
[1772937157380,0.08424444,67162.0,67152.0,0.00168]
[1772937158351,0.01039267,67161.0,67152.0,0.0002]
[1772937158554,0.01039267,67161.0,67152.0,0.07613775]
[1772937159316,0.01039267,67161.0,67147.0,0.07446321]
[1772937159521,0.01039267,67160.0,67149.0,0.00148]
[1772937159927,0.01039267,67160.0,67147.0,0.07446321]
[1772937160243,0.07445018,67159.0,67146.0,0.07446349]
[1772937160420,0.01039267,67158.0,67146.0,0.07446349]
[1772937160627,0.01039267,67158.0,67147.0,0.00148]
[1772937160824,0.01039267,67158.0,67146.0,0.07446349]
[1772937161229,0.01039267,67158.0,67147.0,0.00148]
[1772937162735,0.0744524,67157.0,67148.0,0.07446238]
[1772937163541,0.00148,67161.0,67148.0,0.07446238]
[1772937163742,0.00919927,67160.0,67148.0,0.07446238]
[1772937163965,0.00919927,67159.0,67149.0,0.00148]
[1772937165576,0.08484396,67158.0,67149.0,0.00148]
[1772937165978,0.08484396,67158.0,67149.0,0.00131169]
[1772937166396,0.08484396,67158.0,67149.0,0.00148]
[1772937166603,0.08484396,67158.0,67148.0,0.07466218]
[1772937166825,0.08484396,67158.0,67148.0,0.07614218]
[1772937167667,0.07445129,67158.0,67148.0,0.07614218]
[1772937169201,0.07445129,67158.0,67148.0,0.07466218]
[1772937169404,0.07445129,67158.0,67149.0,0.00148]
[1772937169908,0.07445129,67159.0,67149.0,0.07594089]
[1772937170081,0.01039267,67158.0,67148.0,0.0002]
[1772937170255,0.01039267,67157.0,67148.0,0.0002]
[1772937171829,0.01039267,67157.0,67148.0,3.169e-05]
[1772937172117,0.07445351,67156.0,67148.0,3.169e-05]
[1772937172324,0.01039267,67155.0,67148.0,3.169e-05]
[1772937173923,0.01139267,67155.0,67148.0,3.169e-05]
[1772937174282,0.07445572,67154.0,67148.0,3.169e-05]
[1772937175235,0.07445572,67154.0,67143.0,0.07614764]
[1772937175521,0.07445572,67154.0,67148.0,0.0002]
[1772937175722,0.07445572,67154.0,67148.0,3.176e-05]
[1772937176723,0.07545572,67154.0,67148.0,3.176e-05]
[1772937177026,0.07445572,67154.0,67148.0,3.176e-05]
[1772937177740,0.07545572,67154.0,67148.0,3.176e-05]
[1772937178909,0.07445572,67154.0,67148.0,3.176e-05]
[1772937179122,0.07545572,67154.0,67148.0,3.176e-05]
[1772937179326,0.07445572,67154.0,67148.0,3.176e-05]
[1772937179732,0.07545572,67154.0,67148.0,3.176e-05]
[1772937180045,0.07445572,67154.0,67148.0,3.176e-05]
[1772937180271,0.00022001,67158.0,67148.0,0.03650601]
[1772937180471,0.07444137,67167.0,67151.0,0.03647425]
[1772937180640,0.07506504,67165.0,67154.0,0.01092451]
[1772937180841,0.07506504,67165.0,67155.0,0.07593461]
[1772937181335,0.07506504,67165.0,67155.0,0.08669094]
[1772937181575,0.07506504,67165.0,67155.0,0.01240451]
[1772937181735,0.01039267,67164.0,67149.0,0.07446066]
[1772937181941,0.01039267,67164.0,67150.0,0.00148]
[1772937182141,0.01039267,67164.0,67150.0,0.01248733]
[1772937182377,0.07506504,67165.0,67151.0,0.045304]
[1772937182691,0.07506504,67165.0,67155.0,0.05631133]
[1772937182991,0.07506504,67165.0,67156.0,0.05631133]
[1772937183354,0.07506504,67165.0,67157.0,0.01100733]
[1772937184791,0.07465588,67172.0,67159.0,0.01100733]
[1772937184965,0.0747762,67172.0,67162.0,0.01100733]
[1772937186167,0.0753174,67172.0,67162.0,0.01100733]
[1772937187540,0.0753174,67172.0,67163.0,0.07444575]
[1772937190224,0.0753174,67172.0,67159.0,0.0857363]
[1772937190657,0.04435828,67170.0,67156.0,0.07445327]
[1772937190804,0.01199269,67169.0,67157.0,0.00148]
[1772937191613,0.01199269,67169.0,67156.0,0.07445327]
[1772937192031,0.0744402,67168.0,67156.0,0.07445327]
[1772937192206,0.08643289,67168.0,67157.0,0.00148]
[1772937192645,0.08643289,67168.0,67156.0,0.07445327]
[1772937192848,0.01199269,67167.0,67157.0,0.00148]
[1772937193026,0.01235419,67167.0,67157.0,0.00148]
[1772937194114,0.01235419,67167.0,67158.0,0.07445129]
[1772937196416,0.0746199,67170.0,67159.0,0.01128612]
[1772937196615,0.07461778,67170.0,67160.0,0.045304]
[1772937196817,0.07461778,67170.0,67161.0,0.01128612]
[1772937197907,0.07461778,67170.0,67158.0,0.07445129]
[1772937198458,0.0744402,67168.0,67158.0,0.07445129]
[1772937199345,0.0744402,67168.0,67158.0,0.07428311]
[1772937203384,0.0744402,67168.0,67159.0,0.00148]
[1772937204808,0.07477614,67172.0,67159.0,0.00148]
[1772937204809,0.07480509,67173.0,67160.0,0.01128612]
[1772937204985,0.00044758,67173.0,67160.0,0.01128612]
[1772937205187,0.08790227,67178.0,67160.0,0.01128612]
[1772937205188,0.07464034,67186.0,67162.0,0.045304]
[1772937205440,0.07442149,67185.0,67165.0,0.01128612]
[1772937205613,0.07442149,67185.0,67167.0,0.01128612]
[1772937205929,0.07442149,67185.0,67169.0,0.01128612]
[1772937206132,0.00022001,67186.0,67170.0,0.01128612]
[1772937206343,0.07464038,67186.0,67172.0,0.01128612]
[1772937206519,0.07464038,67186.0,67174.0,0.01128612]
[1772937206520,0.07442162,67185.0,67174.0,0.01128612]
[1772937207233,0.07442162,67185.0,67175.0,0.07443245]
[1772937207411,0.11846216,67193.0,67176.0,0.01128612]